[Event "DLM Youth 2024"]
[Site "Tuebingen"]
[Date "2024.10.04"]
[Round "4"]
[White "Roessling, Laura Marie"]
[Black "Geist, Tim"]
[Result "0-1"]
[ECO "B90"]
[WhiteElo "1624"]
[BlackElo "1977"]
[Annotator "RC"]
[PlyCount "70"]
[EventDate "2024.10.03"]
[EventType "team-swiss"]
[EventRounds "7"]
[EventCountry "GER"]
[SourceTitle "playchess.com"]
[Source "ChessBase"]
[SourceQuality "1"]
[TimeControl "40/5400+30:1800+30"]

1. e4 {[%emt 0:00:04]} c5 {[%emt 0:00:41]} 2. Nf3 {[%emt 0:00:44]} d6 {[%emt 0:00:19]} 3. d4 {[%emt 0:00:32]} cxd4 {[%emt 0:00:05]} 4. Nxd4 {[%emt 0:00:29]} Nf6 {[%emt 0:00:05]} 5. Nc3 {[%emt 0:00:46]} a6 {[%emt 0:00:04]} 6. Bd3 {[%emt 0:04:29]} e5 {[%emt 0:01:14]} 7. Nb3 {[%emt 0:01:21]} Be7 {[%emt 0:00:34]} 8. O-O {[%emt 0:01:27]} O-O {[%emt 0:00:15]} 9. Kh1 {[%emt 0:11:38]} b5 {[%emt 0:01:27]} 10. f4 {[%emt 0:02:56]} Nbd7 {[%emt 0:01:39]} 11. f5 {[%emt 0:04:01]} Bb7 {[%emt 0:00:19]} 12. Qf3 {[%emt 0:08:20]} b4 {[%emt 0:03:12]} 13. Nd5 {[%emt 0:01:38]} Nxd5 {[%emt 0:00:51]} 14. exd5 {[%emt 0:00:15]} a5 {[%emt 0:02:46]} 15. c4 {[%emt 0:03:16]} bxc3 {[%emt 0:01:44]} 16. bxc3 {[%emt 0:00:10]} a4 {[%emt 0:00:12]} 17. Nd2 {[%emt 0:00:22]} Bf6 {[%emt 0:05:51]} 18. c4 {[%emt 0:02:54]} e4 {[%emt 0:00:49]} 19. Nxe4 {[%emt 0:01:24]} Bxa1 {[%emt 0:01:45]} 20. Nxd6 {[%emt 0:04:56]} Rb8 {[%emt 0:09:30]} 21. Nxb7 {[%emt 0:03:00]} Rxb7 {[%emt 0:00:07]} 22. Ba3 {[%emt 0:00:31]} Bf6 {[%emt 0:01:33]} 23. Bxf8 {[%emt 0:01:00]} Qxf8 {[%emt 0:00:04]} 24. Bc2 {[%emt 0:12:46]} Qb4 {[%emt 0:02:10]} 25. Qd1 {[%emt 0:07:20]} Nb6 {[%emt 0:07:38]} 26. Re1 {[%emt 0:03:21]} Re7 {[%emt 0:04:38]} 27. Rxe7 {[%emt 0:01:16]} Bxe7 {[%emt 0:00:02]} 28. h3 {[%emt 0:03:23]} Nxc4 {[%emt 0:01:46]} 29. Qe2 {[%emt 0:09:47]} g6 {[%emt 0:04:51]} 30. fxg6 {[%emt 0:01:29]} hxg6 {[%emt 0:00:07]} 31. Bxa4 {[%emt 0:00:52]} Qxa4 {[%emt 0:03:59]} 32. Qxe7 {[%emt 0:00:18]} Qd1+ {[%emt 0:00:05]} 33. Kh2 {[%emt 0:00:18]} Qxd5 {[%emt 0:00:08]} 34. Qe8+ {[%emt 0:01:36]} Kg7 {[%emt 0:00:10]} 35. Qc8 {[%emt 0:00:34]} Qe5+ {[%emt 0:01:49]} 0-1

[Event "DLM Youth 2024"]
[Site "Tuebingen"]
[Date "2024.10.04"]
[Round "4"]
[White "Wang, Enya Marie"]
[Black "Meitzner, Jonathan Franz"]
[Result "0-1"]
[ECO "B22"]
[WhiteElo "1613"]
[BlackElo "1845"]
[Annotator "NA RC"]
[PlyCount "97"]
[EventDate "2024.10.03"]
[EventType "team-swiss"]
[EventRounds "7"]
[EventCountry "GER"]
[SourceTitle "playchess.com"]
[Source "ChessBase"]
[SourceQuality "1"]
[TimeControl "40/5400+30:1800+30"]

1. e4 {[%emt 0:00:01]} c5 {[%emt 0:00:13]} 2. c3 {[%emt 0:00:07]} Nf6 {[%emt 0:00:18]} 3. e5 {[%emt 0:00:08]} Nd5 {[%emt 0:00:10]} 4. Nf3 {[%emt 0:00:12]} e6 {[%emt 0:00:21]} 5. Bc4 {[%emt 0:00:33]} Nb6 {[%emt 0:00:13]} 6. Bb3 {[%emt 0:00:18]} Be7 {[%emt 0:00:48]} 7. O-O {[%emt 0:00:40]} O-O {[%emt 0:00:08]} 8. d4 {[%emt 0:01:36]} cxd4 {[%emt 0:01:11]} 9. Nxd4 {[%emt 0:00:08]} d6 {[%emt 0:07:30]} 10. Bf4 {[%emt 0:06:01]} dxe5 {[%emt 0:03:04]} 11. Bxe5 {[%emt 0:01:42]} N8d7 {[%emt 0:00:53]} 12. Bg3 {[%emt 0:02:15]} Nf6 {[%emt 0:03:23]} 13. Nd2 {[%emt 0:02:19]} a6 {[%emt 0:05:49]} 14. Re1 {[%emt 0:01:41]} Nbd5 {[%emt 0:05:29]} 15. Bc2 {[%emt 0:02:38]} Qd7 {[%emt 0:04:29]} 16. N2f3 {[%emt 0:02:00]} Bd6 {[%emt 0:03:45]} 17. Bxd6 {[%emt 0:03:10]} Qxd6 {[%emt 0:02:39]} 18. Qd2 {[%emt 0:02:13]} b5 {[%emt 0:03:04]} 19. a4 {[%emt 0:04:09]} b4 {[%emt 0:05:02]} 20. Ne2 {[%emt 0:08:17]} bxc3 {[%emt 0:06:28]} 21. Nxc3 {[%emt 0:01:40]} Bb7 {[%emt 0:01:07]} 22. Ng5 {[%emt 0:03:46]} Qb4 {[%emt 0:08:47]} 23. Nce4 {[%emt 0:05:58]} Nxe4 {[%emt 0:06:37]} 24. Qxb4 {[%emt 0:01:35]} Nxb4 {[%emt 0:00:15]} 25. Bxe4 {[%emt 0:00:25]} Bxe4 {[%emt 0:00:35]} 26. Rxe4 {[%emt 0:00:18]} Rab8 {[%emt 0:00:41]} 27. Rd1 {[%emt 0:09:37]} Nc2 {[%emt 0:07:07]} 28. Rb1 {[%emt 0:09:01]} Na3 {[%emt 0:04:29]} 29. Rd1 {[%emt 0:09:14]} Rxb2 {[%emt 0:00:28]} 30. h3 {[%emt 0:01:21]} h6 {[%emt 0:02:44]} 31. Nf3 {[%emt 0:00:58]} Rc8 {[%emt 0:04:15]} 32. Red4 {[%emt 0:03:56]} Rb1 {[%emt 0:02:38]} 33. Rxb1 {[%emt 0:00:39]} Nxb1 {[%emt 0:00:25]} 34. Rd6 {[%emt 0:01:15]} a5 {[%emt 0:01:42]} 35. Ra6 {[%emt 0:01:49]} Rc5 {[%emt 0:00:30]} 36. Nd4 {[%emt 0:01:04]} Rc4 {[%emt 0:01:35]} 37. Nc6 {[%emt 0:01:26]} Rxa4 {[%emt 0:00:19]} 38. Rxa5 {[%emt 0:00:13]} Rxa5 {[%emt 0:00:13]} 39. Nxa5 {[%emt 0:00:07]} Nc3 {[%emt 0:00:17]} 40. Nc4 {[%emt 0:00:21]} Kf8 {[%emt 0:00:28]} 41. Kf1 {[%emt 0:30:33]} Ke7 {[%emt 0:30:39]} 42. Ke1 {[%emt 0:02:47]} Kf6 {[%emt 0:00:53]} 43. Kd2 {[%emt 0:00:45]} Nd5 {[%emt 0:00:15]} 44. Ne3 {[%emt 0:00:30]} Nxe3 {[%emt 0:00:30]} 45. Kxe3 {[%emt 0:00:30]} Kg5 {[%emt 0:00:30]} 46. Ke4 {[%emt 0:00:30]} f6 {[%emt 0:00:30]} 47. g3 {[%emt 0:00:30]} h5 {[%emt 0:00:30]} 48. f3 {[%emt 0:00:00]} h4 {[%emt 0:00:00]} 49. g4 {[%emt 0:00:00]} 0-1

[Event "DLM Youth 2024"]
[Site "Tuebingen"]
[Date "2024.10.04"]
[Round "4"]
[White "Krannich, Eva"]
[Black "Margaryan, Mane"]
[Result "0-1"]
[ECO "B06"]
[WhiteElo "1582"]
[BlackElo "1493"]
[Annotator "NA RC"]
[PlyCount "46"]
[EventDate "2024.10.03"]
[EventType "team-swiss"]
[EventRounds "7"]
[EventCountry "GER"]
[SourceTitle "playchess.com"]
[Source "ChessBase"]
[SourceQuality "1"]
[TimeControl "40/5400+30:1800+30"]

1. e4 {[%emt 0:00:01]} c6 {[%emt 0:00:04]} 2. d4 {[%emt 0:00:07]} g6 {[%emt 0:00:34]} 3. Nf3 {[%emt 0:00:26]} Bg7 {[%emt 0:00:36]} 4. Bd3 {[%emt 0:00:44]} d5 {[%emt 0:01:20]} 5. exd5 {[%emt 0:00:16]} cxd5 {[%emt 0:00:10]} 6. h3 {[%emt 0:00:15]} Nh6 {[%emt 0:06:48]} 7. c3 {[%emt 0:05:11]} f6 {[%emt 0:02:44]} 8. Bf4 {[%emt 0:03:58]} O-O {[%emt 0:02:07]} 9. O-O {[%emt 0:01:08]} Nf7 {[%emt 0:00:06]} 10. Re1 {[%emt 0:03:40]} Re8 {[%emt 0:02:44]} 11. Bg3 {[%emt 0:02:24]} e5 {[%emt 0:06:27]} 12. Bc2 {[%emt 0:02:04]} b6 {[%emt 0:14:26]} 13. Nbd2 {[%emt 0:03:51]} Bb7 {[%emt 0:03:27]} 14. Nf1 {[%emt 0:04:47]} e4 {[%emt 0:05:49]} 15. N3h2 {[%emt 0:00:20]} f5 {[%emt 0:03:32]} 16. Ne3 {[%emt 0:02:24]} Nd7 {[%emt 0:02:20]} 17. Bb3 {[%emt 0:00:32]} Nf6 {[%emt 0:01:44]} 18. Qe2 {[%emt 0:09:19]} Nh5 {[%emt 0:07:25]} 19. Nxf5 {[%emt 0:02:20]} Nxg3 {[%emt 0:01:41]} 20. Nxg3 {[%emt 0:00:21]} Bh6 {[%emt 0:07:36]} 21. Ng4 {[%emt 0:01:07]} Bf4 {[%emt 0:03:50]} 22. Nf1 {[%emt 0:03:44]} a5 {[%emt 0:04:24]} 23. Ba4 {[%emt 0:04:23]} Rf8 {[%emt 0:04:44]} 0-1

[Event "DLM Youth 2024"]
[Site "Tuebingen"]
[Date "2024.10.04"]
[Round "4"]
[White "Lu, Sheng"]
[Black "Albrecht, Sidney Jenna"]
[Result "1-0"]
[ECO "B73"]
[WhiteElo "1559"]
[BlackElo "1544"]
[Annotator "NA RC"]
[PlyCount "97"]
[EventDate "2024.10.03"]
[EventType "team-swiss"]
[EventRounds "7"]
[EventCountry "GER"]
[SourceTitle "playchess.com"]
[Source "ChessBase"]
[SourceQuality "1"]
[TimeControl "40/5400+30:1800+30"]

1. e4 {[%emt 0:00:07]} c5 {[%emt 0:00:04]} 2. Nf3 {[%emt 0:00:05]} Nc6 {[%emt 0:00:06]} 3. d4 {[%emt 0:00:05]} cxd4 {[%emt 0:00:05]} 4. Nxd4 {[%emt 0:00:04]} g6 {[%emt 0:00:07]} 5. Nc3 {[%emt 0:00:06]} Bg7 {[%emt 0:00:10]} 6. Be3 {[%emt 0:00:11]} Nf6 {[%emt 0:00:07]} 7. Be2 {[%emt 0:00:13]} O-O {[%emt 0:00:11]} 8. O-O {[%emt 0:00:04]} d6 {[%emt 0:00:20]} 9. Qd2 {[%emt 0:01:52]} Bd7 {[%emt 0:04:00]} 10. Rad1 {[%emt 0:02:58]} Rc8 {[%emt 0:02:52]} 11. f3 {[%emt 0:04:17]} Re8 {[%emt 0:10:07]} 12. Kh1 {[%emt 0:07:10]} Nxd4 {[%emt 0:07:06]} 13. Bxd4 {[%emt 0:00:00]} a6 {[%emt 0:00:49]} 14. Qe3 {[%emt 0:00:02]} Bc6 {[%emt 0:05:34]} 15. Bb6 {[%emt 0:01:06]} Qd7 {[%emt 0:00:41]} 16. e5 {[%emt 0:00:46]} Qe6 {[%emt 0:03:00]} 17. exf6 {[%emt 0:00:27]} Qxe3 {[%emt 0:02:43]} 18. Bxe3 {[%emt 0:00:15]} Bxf6 {[%emt 0:01:19]} 19. Bd4 {[%emt 0:02:36]} Bxd4 {[%emt 0:03:28]} 20. Rxd4 {[%emt 0:00:19]} b5 {[%emt 0:01:49]} 21. Rc1 {[%emt 0:02:05]} Red8 {[%emt 0:04:45]} 22. Nd5 {[%emt 0:01:34]} Rc7 {[%emt 0:03:28]} 23. Nxc7 {[%emt 0:00:14]} Rd7 {[%emt 0:02:51]} 24. Nxa6 {[%emt 0:00:41]} Ra7 {[%emt 0:03:00]} 25. Nb4 {[%emt 0:00:21]} Bd7 {[%emt 0:01:13]} 26. a3 {[%emt 0:01:32]} Rb7 {[%emt 0:03:36]} 27. Re1 {[%emt 0:01:28]} Kf8 {[%emt 0:02:14]} 28. Bd3 {[%emt 0:01:02]} Ra7 {[%emt 0:02:51]} 29. Nd5 {[%emt 0:01:02]} Bc6 {[%emt 0:02:08]} 30. Rxe7 {[%emt 0:01:24]} Rxe7 {[%emt 0:00:32]} 31. Nxe7 {[%emt 0:00:04]} Kxe7 {[%emt 0:00:20]} 32. Be4 {[%emt 0:00:15]} Bd7 {[%emt 0:01:26]} 33. c4 {[%emt 0:00:18]} bxc4 {[%emt 0:02:27]} 34. Rxc4 {[%emt 0:00:08]} Ke6 {[%emt 0:01:35]} 35. Rc7 {[%emt 0:01:09]} Ba4 {[%emt 0:03:15]} 36. b4 {[%emt 0:00:26]} h5 {[%emt 0:02:13]} 37. Ra7 {[%emt 0:01:00]} Bb5 {[%emt 0:00:25]} 38. a4 {[%emt 0:00:17]} Bc4 {[%emt 0:00:34]} 39. b5 {[%emt 0:00:20]} d5 {[%emt 0:00:24]} 40. Bc2 {[%emt 0:00:12]} d4 {[%emt 0:01:33]} 41. b6 {[%emt 0:30:15]} Bd5 {[%emt 0:30:37]} 42. Be4 {[%emt 0:00:08]} Bxe4 {[%emt 0:00:24]} 43. fxe4 {[%emt 0:00:11]} d3 {[%emt 0:00:17]} 44. Ra8 {[%emt 0:00:36]} Ke7 {[%emt 0:00:29]} 45. Re8+ {[%emt 0:00:17]} Kxe8 {[%emt 0:00:19]} 46. b7 {[%emt 0:00:04]} d2 {[%emt 0:00:45]} 47. b8=Q+ {[%emt 0:00:14]} Ke7 {[%emt 0:00:07]} 48. Qb1 {[%emt 0:00:11]} d1=Q+ {[%emt 0:00:46]} 49. Qxd1 {[%emt 0:00:39]} 1-0

[Event "DLM Youth 2024"]
[Site "Tuebingen"]
[Date "2024.10.04"]
[Round "4"]
[White "Baklan, Kira"]
[Black "Mersmann, Jasmin"]
[Result "1/2-1/2"]
[ECO "C28"]
[WhiteElo "1550"]
[BlackElo "1607"]
[Annotator "NA RC"]
[PlyCount "120"]
[EventDate "2024.10.03"]
[EventType "team-swiss"]
[EventRounds "7"]
[EventCountry "GER"]
[SourceTitle "playchess.com"]
[Source "ChessBase"]
[SourceQuality "1"]
[TimeControl "40/5400+30:1800+30"]

1. e4 {[%emt 0:00:02]} e5 {[%emt 0:00:10]} 2. Nc3 {[%emt 0:00:06]} Nf6 {[%emt 0:00:22]} 3. Bc4 {[%emt 0:00:07]} Nc6 {[%emt 0:00:35]} 4. d3 {[%emt 0:00:10]} d6 {[%emt 0:00:24]} 5. Bg5 {[%emt 0:00:27]} Be7 {[%emt 0:00:29]} 6. a3 {[%emt 0:00:54]} O-O {[%emt 0:00:56]} 7. Nf3 {[%emt 0:00:13]} Bg4 {[%emt 0:00:12]} 8. h3 {[%emt 0:00:14]} Be6 {[%emt 0:01:51]} 9. Nd5 {[%emt 0:05:55]} Nxd5 {[%emt 0:00:47]} 10. exd5 {[%emt 0:00:10]} Bxd5 {[%emt 0:03:43]} 11. Bxe7 {[%emt 0:02:18]} Nxe7 {[%emt 0:00:00]} 12. Bxd5 {[%emt 0:02:18]} Nxd5 {[%emt 0:00:00]} 13. g3 {[%emt 0:00:58]} Qd7 {[%emt 0:01:19]} 14. Qe2 {[%emt 0:01:07]} f5 {[%emt 0:01:08]} 15. O-O-O {[%emt 0:01:18]} Qe7 {[%emt 0:03:27]} 16. h4 {[%emt 0:05:28]} Nb6 {[%emt 0:05:42]} 17. Ng1 {[%emt 0:01:59]} Rae8 {[%emt 0:02:57]} 18. h5 {[%emt 0:03:54]} Qg5+ {[%emt 0:00:59]} 19. Kb1 {[%emt 0:00:16]} Na4 {[%emt 0:01:11]} 20. d4 {[%emt 0:06:18]} Nb6 {[%emt 0:01:48]} 21. Nf3 {[%emt 0:01:55]} Qf6 {[%emt 0:01:59]} 22. dxe5 {[%emt 0:02:29]} dxe5 {[%emt 0:00:29]} 23. Qe3 {[%emt 0:02:19]} e4 {[%emt 0:02:14]} 24. Nd4 {[%emt 0:01:33]} c5 {[%emt 0:02:48]} 25. Nb5 {[%emt 0:01:35]} Nc4 {[%emt 0:00:42]} 26. Qb3 {[%emt 0:00:14]} Qf7 {[%emt 0:01:35]} 27. Nxa7 {[%emt 0:03:38]} Rd8 {[%emt 0:00:27]} 28. Ka1 {[%emt 0:02:29]} Kh8 {[%emt 0:02:36]} 29. Rxd8 {[%emt 0:00:34]} Rxd8 {[%emt 0:00:24]} 30. Nb5 {[%emt 0:00:40]} Ne5 {[%emt 0:03:44]} 31. Qxf7 {[%emt 0:01:56]} Nxf7 {[%emt 0:00:20]} 32. Kb1 {[%emt 0:00:39]} h6 {[%emt 0:00:17]} 33. Kc1 {[%emt 0:00:16]} Ne5 {[%emt 0:00:20]} 34. Rd1 {[%emt 0:01:03]} Rxd1+ {[%emt 0:02:30]} 35. Kxd1 {[%emt 0:00:03]} Nf7 {[%emt 0:00:56]} 36. Ke2 {[%emt 0:02:13]} Kh7 {[%emt 0:00:51]} 37. Ke3 {[%emt 0:00:19]} g6 {[%emt 0:00:31]} 38. Kf4 {[%emt 0:01:21]} Kg7 {[%emt 0:02:31]} 39. b4 {[%emt 0:02:07]} cxb4 {[%emt 0:00:15]} 40. axb4 {[%emt 0:00:03]} Kf6 {[%emt 0:00:11]} 41. hxg6 {[%emt 0:30:16]} Kxg6 {[%emt 0:30:28]} 42. c4 {[%emt 0:00:24]} Kf6 {[%emt 0:01:04]} 43. Nd4 {[%emt 0:00:18]} Nd8 {[%emt 0:04:07]} 44. Nxf5 {[%emt 0:04:39]} Ne6+ {[%emt 0:00:13]} 45. Kg4 {[%emt 0:00:21]} h5+ {[%emt 0:00:25]} 46. Kxh5 {[%emt 0:00:16]} Kxf5 {[%emt 0:00:26]} 47. Kh4 {[%emt 0:01:03]} b6 {[%emt 0:03:17]} 48. Kh3 {[%emt 0:00:25]} Kg5 {[%emt 0:00:52]} 49. Kg2 {[%emt 0:00:30]} Kg4 {[%emt 0:00:37]} 50. Kf1 {[%emt 0:01:25]} Kf3 {[%emt 0:00:40]} 51. Ke1 {[%emt 0:00:10]} Nd4 {[%emt 0:03:36]} 52. c5 {[%emt 0:00:16]} bxc5 {[%emt 0:02:03]} 53. bxc5 {[%emt 0:00:04]} Nc6 {[%emt 0:00:33]} 54. Kf1 {[%emt 0:00:16]} Nd4 {[%emt 0:00:38]} 55. Ke1 {[%emt 0:00:14]} Nc6 {[%emt 0:00:19]} 56. Kf1 {[%emt 0:00:29]} Ne5 {[%emt 0:02:05]} 57. Kg1 {[%emt 0:00:35]} Nc6 {[%emt 0:05:31]} 58. Kf1 {[%emt 0:00:14]} Ne5 {[%emt 0:00:14]} 59. Kg1 {[%emt 0:00:09]} Nc6 {[%emt 0:01:14]} 60. Kf1 {[%emt 0:00:41]} Ne5 {[%emt 0:01:37]} 1/2-1/2

[Event "DLM Youth 2024"]
[Site "Tuebingen"]
[Date "2024.10.04"]
[Round "4"]
[White "Wolf, Helena"]
[Black "Fischermann, Charlotte"]
[Result "1/2-1/2"]
[ECO "C54"]
[WhiteElo "1545"]
[BlackElo "1657"]
[Annotator "NA RC"]
[PlyCount "84"]
[EventDate "2024.10.03"]
[EventType "team-swiss"]
[EventRounds "7"]
[EventCountry "GER"]
[SourceTitle "playchess.com"]
[Source "ChessBase"]
[SourceQuality "1"]
[TimeControl "40/5400+30:1800+30"]

1. e4 {[%emt 0:00:01]} e5 {[%emt 0:00:04]} 2. Nf3 {[%emt 0:00:05]} Nc6 {[%emt 0:00:05]} 3. Bc4 {[%emt 0:00:10]} Nf6 {[%emt 0:00:18]} 4. d3 {[%emt 0:00:05]} Bc5 {[%emt 0:00:22]} 5. O-O {[%emt 0:00:20]} d6 {[%emt 0:00:41]} 6. c3 {[%emt 0:00:18]} Bd7 {[%emt 0:02:56]} 7. Bb3 {[%emt 0:00:16]} Ne7 {[%emt 0:02:11]} 8. h3 {[%emt 0:01:20]} h6 {[%emt 0:00:39]} 9. Re1 {[%emt 0:00:26]} Ng6 {[%emt 0:01:36]} 10. Nbd2 {[%emt 0:05:06]} O-O {[%emt 0:03:09]} 11. Nf1 {[%emt 0:01:04]} Re8 {[%emt 0:02:46]} 12. Ng3 {[%emt 0:00:39]} Be6 {[%emt 0:03:10]} 13. Bxe6 {[%emt 0:05:26]} fxe6 {[%emt 0:00:28]} 14. d4 {[%emt 0:00:53]} exd4 {[%emt 0:02:18]} 15. cxd4 {[%emt 0:00:11]} Bb4 {[%emt 0:00:52]} 16. Bd2 {[%emt 0:01:20]} Bxd2 {[%emt 0:00:23]} 17. Qxd2 {[%emt 0:00:08]} e5 {[%emt 0:00:30]} 18. dxe5 {[%emt 0:03:22]} Nxe5 {[%emt 0:00:22]} 19. Nxe5 {[%emt 0:00:52]} Rxe5 {[%emt 0:01:41]} 20. Qd3 {[%emt 0:06:31]} Kf8 {[%emt 0:04:15]} 21. Rac1 {[%emt 0:02:13]} Qd7 {[%emt 0:04:26]} 22. Qc4 {[%emt 0:01:57]} Rc5 {[%emt 0:02:37]} 23. Qd4 {[%emt 0:01:11]} Rxc1 {[%emt 0:06:21]} 24. Rxc1 {[%emt 0:00:15]} c5 {[%emt 0:00:15]} 25. Qd3 {[%emt 0:04:12]} b6 {[%emt 0:01:24]} 26. Rd1 {[%emt 0:02:23]} Rd8 {[%emt 0:02:02]} 27. Qf3 {[%emt 0:04:35]} Qe6 {[%emt 0:02:24]} 28. b3 {[%emt 0:04:31]} d5 {[%emt 0:02:36]} 29. exd5 {[%emt 0:01:35]} Rxd5 {[%emt 0:00:10]} 30. Rxd5 {[%emt 0:00:15]} Qxd5 {[%emt 0:00:04]} 31. Qxd5 {[%emt 0:00:07]} Nxd5 {[%emt 0:00:05]} 32. Ne4 {[%emt 0:00:12]} Nb4 {[%emt 0:00:24]} 33. Nc3 {[%emt 0:04:29]} Ke7 {[%emt 0:00:36]} 34. Kf1 {[%emt 0:00:07]} Ke6 {[%emt 0:00:45]} 35. Ke2 {[%emt 0:00:49]} Ke5 {[%emt 0:00:33]} 36. Kd2 {[%emt 0:03:53]} Nc6 {[%emt 0:03:06]} 37. Ke3 {[%emt 0:01:43]} Nd4 {[%emt 0:00:48]} 38. f4+ {[%emt 0:02:37]} Ke6 {[%emt 0:01:02]} 39. Kd3 {[%emt 0:01:49]} Kf5 {[%emt 0:00:48]} 40. Nd5 {[%emt 0:01:16]} Ke6 {[%emt 0:01:59]} 41. Nc3 {[%emt 0:30:22]} Nc6 {[%emt 0:36:12]} 42. Ke4 {[%emt 0:03:50]} Nd4 {[%emt 0:00:57]} 1/2-1/2

[Event "DLM Youth 2024"]
[Site "Tuebingen"]
[Date "2024.10.04"]
[Round "4"]
[White "Didas, Emma"]
[Black "Tu, Audrey"]
[Result "0-1"]
[ECO "C54"]
[WhiteElo "1078"]
[BlackElo "1722"]
[Annotator "NA RC"]
[PlyCount "62"]
[EventDate "2024.10.03"]
[EventType "team-swiss"]
[EventRounds "7"]
[EventCountry "GER"]
[SourceTitle "playchess.com"]
[Source "ChessBase"]
[SourceQuality "1"]
[TimeControl "40/5400+30:1800+30"]

1. e4 {[%emt 0:00:01]} e5 {[%emt 0:00:05]} 2. Nf3 {[%emt 0:00:04]} Nc6 {[%emt 0:00:07]} 3. Bc4 {[%emt 0:00:04]} Bc5 {[%emt 0:00:07]} 4. c3 {[%emt 0:00:04]} Nf6 {[%emt 0:00:17]} 5. d3 {[%emt 0:00:08]} d6 {[%emt 0:00:06]} 6. a4 {[%emt 0:00:19]} a6 {[%emt 0:00:18]} 7. b4 {[%emt 0:00:25]} Ba7 {[%emt 0:00:30]} 8. O-O {[%emt 0:00:15]} h6 {[%emt 0:01:51]} 9. Nbd2 {[%emt 0:00:24]} O-O {[%emt 0:00:54]} 10. h3 {[%emt 0:00:37]} Be6 {[%emt 0:00:32]} 11. Bxe6 {[%emt 0:01:06]} fxe6 {[%emt 0:00:17]} 12. Re1 {[%emt 0:00:24]} Nh5 {[%emt 0:01:39]} 13. Nf1 {[%emt 0:02:23]} Qf6 {[%emt 0:04:49]} 14. Ne3 {[%emt 0:01:32]} Nf4 {[%emt 0:02:42]} 15. Ng4 {[%emt 0:02:32]} Qg6 {[%emt 0:11:00]} 16. Bxf4 {[%emt 0:02:07]} Rxf4 {[%emt 0:02:15]} 17. Ra2 {[%emt 0:03:44]} Raf8 {[%emt 0:04:54]} 18. Kh1 {[%emt 0:07:56]} Qh5 {[%emt 0:05:07]} 19. Nd2 {[%emt 0:03:30]} Qh4 {[%emt 0:04:05]} 20. Nf3 {[%emt 0:03:17]} Qh5 {[%emt 0:13:54]} 21. Nd2 {[%emt 0:00:16]} Kh8 {[%emt 0:02:16]} 22. f3 {[%emt 0:02:03]} Ne7 {[%emt 0:03:30]} 23. b5 {[%emt 0:06:24]} Ng6 {[%emt 0:05:05]} 24. Qe2 {[%emt 0:03:09]} R4f7 {[%emt 0:03:14]} 25. bxa6 {[%emt 0:01:53]} Nf4 {[%emt 0:00:47]} 26. Qf1 {[%emt 0:00:54]} bxa6 {[%emt 0:01:24]} 27. Rb2 {[%emt 0:02:25]} Qh4 {[%emt 0:02:40]} 28. Rbb1 {[%emt 0:03:03]} Nh5 {[%emt 0:01:03]} 29. Rb7 {[%emt 0:08:26]} Ng3+ {[%emt 0:01:05]} 30. Kh2 {[%emt 0:00:09]} Nxf1+ {[%emt 0:00:03]} 31. Rxf1 {[%emt 0:00:14]} Bb6 {[%emt 0:00:30]} 0-1

[Event "DLM Youth 2024"]
[Site "Tuebingen"]
[Date "2024.10.05"]
[Round "5"]
[White "Ermitsch, Magnus"]
[Black "Foksha, Mischa"]
[Result "1-0"]
[ECO "B96"]
[WhiteElo "2396"]
[BlackElo "2078"]
[Annotator "RC"]
[PlyCount "58"]
[EventDate "2024.10.03"]
[EventType "team-swiss"]
[EventRounds "7"]
[EventCountry "GER"]
[SourceTitle "playchess.com"]
[Source "ChessBase"]
[SourceQuality "1"]
[TimeControl "40/5400+30:1800+30"]

1. e4 {[%emt 0:15:01]} c5 {[%emt 0:00:05]} 2. Nf3 {[%emt 0:00:04]} d6 {[%emt 0:00:04]} 3. d4 {[%emt 0:00:03]} cxd4 4. Nxd4 {[%emt 0:00:04]} Nf6 {[%emt 0:00:08]} 5. Nc3 {[%emt 0:00:04]} a6 {[%emt 0:00:03]} 6. Bg5 {[%emt 0:00:04]} e6 {[%emt 0:00:04]} 7. f4 {[%emt 0:00:03]} h6 {[%emt 0:00:04]} 8. Bh4 {[%emt 0:00:03]} Qb6 {[%emt 0:00:07]} 9. a3 {[%emt 0:00:03]} Nc6 {[%emt 0:00:06]} 10. Bf2 {[%emt 0:00:08]} Qc7 {[%emt 0:00:05]} 11. Qf3 {[%emt 0:00:13]} e5 {[%emt 0:00:05]} 12. Nxc6 Qxc6 {[%emt 0:03:41]} 13. f5 {[%emt 0:06:43]} b5 {[%emt 0:03:42]} 14. O-O-O {[%emt 0:00:00]} Bb7 {[%emt 0:04:31]} 15. Nd5 {[%emt 0:00:00]} Nxd5 {[%emt 0:01:50]} 16. exd5 {[%emt 0:00:30]} Qc7 {[%emt 0:03:12]} 17. g4 {[%emt 0:01:07]} Rc8 {[%emt 0:08:03]} 18. Qe4 {[%emt 0:01:46]} Be7 {[%emt 0:06:30]} 19. h4 {[%emt 0:01:23]} Bd8 {[%emt 0:01:15]} 20. Kb1 {[%emt 0:18:15]} Qa5 {[%emt 0:08:21]} 21. Be1 {[%emt 0:01:56]} Qb6 {[%emt 0:17:30]} 22. a4 f6 {[%emt 0:01:22]} 23. a5 {[%emt 0:16:25]} Qc7 {[%emt 0:06:39]} 24. Bb4 {[%emt 0:01:18]} Qd7 {[%emt 0:00:30]} 25. b3 {[%emt 0:00:30]} Bc7 {[%emt 0:00:53]} 26. g5 {[%emt 0:03:35]} Qd8 {[%emt 0:08:08]} 27. gxf6 {[%emt 0:01:13]} Qxf6 {[%emt 0:02:25]} 28. Rg1 O-O {[%emt 0:00:30]} 29. Bd3 {[%emt 0:09:50]} Bd8 {[%emt 0:03:10]} 1-0